Cogmind - Beta 10.1 @@@ ROGUE MODE // 2020.09.25 @ 21:25:54 Player: Tmvn Result: Self-destructed Performance ------------- Evolutions (1) 500 Regions Visited (3) 600 Robots Destroyed (10) 50 Value Destroyed (211) 211 Prototype IDs (0) 0 Alien Tech Used (0) 0 Bonus (0) 0 TOTAL SCORE: 1361 Bonus ------- None Cogmind --------- Core Integrity 234/400 Matter 300/300 Energy 125/125 System Corruption 0% Temperature Cool (15) Movement Flying (197) Ox2 Location -9/Storage Parts ------- > --- POWER (1) -------- Light Ion Engine > --- PROPULSION (3) --- Flight Unit Flight Unit > --- UTILITY (2) ------ Large Storage Unit > --- WEAPON (3) ------- (None) > --- INVENTORY (10) --- Ion Engine Ion Engine Aluminum Leg Aluminum Leg Compact Wheel Heat Sink ECM Suite Light Armor Plating Peak State ------------ > --- POWER ------------ Ion Engine > --- PROPULSION ------- Aluminum Leg Aluminum Leg Aluminum Leg > --- UTILITY ---------- Cooling System Large Storage Unit > --- WEAPON ----------- Beam Cannon Beam Cannon Light Assault Rifle > --- INVENTORY -------- Ion Engine Compact Wheel Heat Sink ECM Suite Light Armor Plating [Rating: 10] Favorites ----------- Power Ion Engine Engine Ion Engine Propulsion Aluminum Leg Leg Aluminum Leg Flight Unit Flight Unit Utility Heat Sink Device Heat Sink Storage Large Storage Unit Weapon Beam Cannon Energy Gun Medium Laser Energy Cannon Beam Cannon Ballistic Gun Light Assault Rifle Build | -11 -10 -9 -9 ------- Run | Scr Mat Mat Sto Slots Evolved 2 | . . 2 . Power . | . . . . Propulsion 1 | . . 1 . Utility . | . . . . Weapon 1 | . . 1 . Parts Attached 19 | . 10 3 6 Power 2 | . 1 . 1 Engine 2 | . 1 . 1 Core . | . . . . Reactor . | . . . . Propulsion 6 | . 3 1 2 Treads . | . . . . Leg 4 | . 3 1 . Wheel . | . . . . Hover . | . . . . Flight 2 | . . . 2 Utility 5 | . 3 1 1 Device 3 | . 2 . 1 Storage 2 | . 1 1 . Processor . | . . . . Hackware . | . . . . Protection . | . . . . Artifact . | . . . . Weapon 6 | . 3 1 2 Energy Gun . | . . . . Energy Cannon 3 | . 2 1 . Ballistic Gun 3 | . 1 . 2 Ballistic Cannon . | . . . . Launcher . | . . . . Special Weapon . | . . . . Impact Weapon . | . . . . Slashing Weapon . | . . . . Piercing Weapon . | . . . . Special Melee Weapon . | . . . . Unidentified Prototypes . | . . . . Parts Lost 9 | . 2 . 7 Power . | . . . . Propulsion 1 | . . . 1 Utility 1 | . . . 1 Weapon 7 | . 2 . 5 Highest Loss Streak 5 | . 2 . 5 Average Slot Usage (%) 93 | . 93 99 89 Engine 12 | . 14 11 11 Leg 26 | . 28 33 20 Flight 2 | . . . 7 Device 9 | . 8 11 11 Storage 12 | . 14 11 11 Energy Gun 1 | . 3 . . Energy Cannon 13 | . 9 21 13 Ballistic Gun 13 | . 14 11 14 Naked Turns . | . . . . Heaviest Build 30 | 12 18 29 30 Greatest Support 30 | 20 20 30 30 Greatest Overweight (x) 6 | . . . 6 Average Overweight (x) . | . . . . Largest Inventory Capacity 10 | 6 10 10 10 Average Capacity 8 | 6 7 9 10 Most Carried 8 | 6 8 7 8 Average Carried 6 | 6 7 4 5 Final Capacity 10 | 6 8 10 10 Final Carried 8 | 6 8 4 8 Class Distribution -------------------- 47% | Scavenger-Gunner 27% | Scavenger-Mutant 24% | Mutant Dominant Class ---------------- Mutant | -10/Materials Scavenger-Gunner | -9/Materials Scavenger-Gunner | -9/Storage Resources | -11 -10 -9 -9 ----------- Run | Scr Mat Mat Sto Matter Collected 396 | 200 111 . 85 Remotely . | . . . . Salvage Created 383 | . 230 . 153 Parts 20 | . 10 . 10 Haulers Intercepted . | . . . . Recyclers Shooed . | . . . . Parts Field Recycled . | . . . . Retrieved Matter . | . . . . Parts Self-Destructed . | . . . . Prevented . | . . . . Kills | -11 -10 -9 -9 ------- Run | Scr Mat Mat Sto Combat Hostiles Destroyed 8 | . 4 . 4 Guns 1 | . 1 . . Cannons 7 | . 3 . 4 Classes Destroyed 3 | . 2 . 1 Recycler 2 | . 1 . 1 Swarmer 4 | . . . 4 Grunt 4 | . 4 . . Best Kill Streak 4 | . 3 . 4 Combat Bots Only 4 | . 2 . 4 Max Kills in Single Turn 1 | . 1 . 1 Gunslinging . | . . . . Exploded . | . . . . Melee . | . . . . Uniques/NPCs Destroyed . | . . . . Combat | -11 -10 -9 -9 -------- Run | Scr Mat Mat Sto Damage Taken 1314 | . 550 105 659 Core 304 | . 138 . 166 Absorbed by Shields . | . . . . Core Remaining (%) 72 | 100 44 . . Volleys Fired 34 | . 22 . 12 Largest 3 | . 2 . 3 Hottest 140 | . 80 . 140 Shots Fired 72 | . 44 . 28 Gun 46 | . 32 . 14 Cannon 26 | . 12 . 14 Launcher . | . . . . Special . | . . . . Kinetic 36 | . 22 . 14 Thermal 36 | . 22 . 14 Explosive . | . . . . Electromagnetic . | . . . . Robot Hit Streak 8 | . 8 . 4 Robot Miss Streak 2 | . 2 . 2 Penetration Max . | . . . . Secondary Targets . | . . . . Shots Hit Robots 42 | . 28 . 14 Core Hits 18 | . 11 . 7 Critical Hits . | . . . . Critical Kills . | . . . . Critical Parts Destroyed . | . . . . Melee Attacks . | . . . . Impact . | . . . . Slashing . | . . . . Piercing . | . . . . Sneak Attacks . | . . . . Combat Hostiles . | . . . . Follow-up Attacks . | . . . . Damage Inflicted 599 | . 431 . 168 Guns 225 | . 180 . 45 Cannons 281 | . 158 . 123 Explosions 93 | . 93 . . Melee . | . . . . Ramming . | . . . . Kinetic 136 | . 91 . 45 Thermal 420 | . 297 . 123 Explosive . | . . . . Electromagnetic 43 | . 43 . . Impact . | . . . . Slashing . | . . . . Piercing . | . . . . Highest Corruption 1 | . 1 . . Average Corruption 1 | . 1 . . Corruption Purged . | . . . . Overload Shots . | . . . . Overflow Damage 32 | . 32 . . Projectiles 16 | . 16 . . Explosions 16 | . 16 . . Melee . | . . . . Knockbacks . | . . . . Impact . | . . . . Kinetic . | . . . . Secondary . | . . . . Self-Inflicted Damage 34 | . 34 . . Shots 1 | . 1 . . Rammed 1 | . . . 1 Targets Rammed 1 | . . . 1 Kicked . | . . . . Crushed . | . . . . Highest Temperature 394 | . 394 . 20 Average Temperature 164 | . 185 . 9 Received Heat Transfer 585 | . 288 36 261 Effects 2 | . 2 . . Shutdowns 1 | . 1 . . Damage (minor) 1 | . 1 . . Siege Activations . | . . . . Robots Corrupted . | . . . . Combat Hostiles . | . . . . Parts Fried . | . . . . Impact Corruptions . | . . . . Robots Melted . | . . . . Combat Hostiles . | . . . . Parts Melted 1 | . . . 1 Heat Transferred 901 | . 642 . 259 Parts Sabotaged . | . . . . Parts Stolen . | . . . . Parts Stripped . | . . . . Power Chain Reactions 1 | . 1 . . Missiles Intercepted . | . . . . Alert | -11 -10 -9 -9 ------- Run | Scr Mat Mat Sto Peak Influence 120 | . 120 65 85 Initial 50 | . . 50 27 Average 59 | . 72 58 44 Maximum Alert Level . | . . . . Low Security (%) 100 | 100 100 100 100 Level 1 . | . . . . Level 2 . | . . . . Level 3 . | . . . . Level 4 . | . . . . Level 5 . | . . . . High Security . | . . . . Max Security . | . . . . Squads Dispatched 1 | . 1 . . Investigation . | . . . . Extermination . | . . . . Reinforcement 1 | . 1 . . Assault . | . . . . Garrison . | . . . . Intercept . | . . . . Construction Impeded . | . . . . Haulers Reinforced . | . . . . Stealth | -11 -10 -9 -9 --------- Run | Scr Mat Mat Sto Distress Signals 2 | . 1 . 1 Communications Jammed . | . . . . Distress Signals . | . . . . Times Spotted 19 | . 7 2 10 Peak Tracking Total 7 | . 3 2 7 Tactical Retreats . | . . . . Traps | -11 -10 -9 -9 ------- Run | Scr Mat Mat Sto Traps Triggered . | . . . . Indirectly . | . . . . Trap Hack Attempts . | . . . . Triggered . | . . . . Disarmed . | . . . . Reprogrammed . | . . . . Reused . | . . . . Traps Extracted . | . . . . Installed . | . . . . Triggered . | . . . . Machines | -11 -10 -9 -9 ---------- Run | Scr Mat Mat Sto Machines Disabled 1 | . 1 . . Max in Single Turn 1 | . 1 . . Machines Sabotaged . | . . . . Garrisons Compromised . | . . . . Overloaded Fab Kills . | . . . . Fab Network Shutdowns . | . . . . Hacking | -11 -10 -9 -9 --------- Run | Scr Mat Mat Sto Machines Accessed 2 | . . . 2 Terminals 2 | . . . 2 Fabricators . | . . . . Repair Stations . | . . . . Recycling Units . | . . . . Scanalyzers . | . . . . Garrison Access . | . . . . Total Hacks 2 | . . . 2 Successful 2 | . . . 2 Failed . | . . . . Catastrophic . | . . . . Database Lockouts . | . . . . Manual . | . . . . Terminals 2 | . . . 2 Fabricators . | . . . . Repair Stations . | . . . . Recycling Units . | . . . . Scanalyzers . | . . . . Garrison Access . | . . . . Terminal Hacks 2 | . . . 2 Unreport Threat 1 | . . . 1 Locate Traps 1 | . . . 1 Fabricator Hacks . | . . . . Repair Station Hacks . | . . . . Recycling Unit Hacks . | . . . . Scanalyzer . | . . . . Garrison Access Hacks . | . . . . Unauthorized Hacks . | . . . . Terminals . | . . . . Fabricators . | . . . . Repair Stations . | . . . . Recycling Units . | . . . . Scanalyzers . | . . . . Garrison Access . | . . . . Data Cores Recovered . | . . . . Used . | . . . . Hacking Detections . | . . . . Full Trace Events . | . . . . Feedback Events . | . . . . Feedback Blocked . | . . . . Robot Schematics Acquired . | . . . . Robots Built . | . . . . Matter . | . . . . Time . | . . . . Total Robot Build Rating . | . . . . Part Schematics Acquired . | . . . . Parts Built . | . . . . Matter . | . . . . Time . | . . . . Total Part Build Rating . | . . . . Parts Repaired . | . . . . Time . | . . . . Parts Recycled . | . . . . Recycled Matter . | . . . . Retrieved Matter . | . . . . Retrieved Components . | . . . . Parts Scanalyzed . | . . . . Part Schematics Acquired . | . . . . Parts Damaged . | . . . . Bothacking | -11 -10 -9 -9 ------------ Run | Scr Mat Mat Sto Used RIF Installer . | . . . . Robots Hacked . | . . . . Non-combat . | . . . . Combat . | . . . . Robot Hacks Applied . | . . . . Relay Couplers Released . | . . . . Robots Rewired . | . . . . Allies Hacked . | . . . . Hacks Repelled . | . . . . Allies | -11 -10 -9 -9 -------- Run | Scr Mat Mat Sto Total Allies . | . . . . Largest Group . | . . . . Highest-Rated Group . | . . . . Highest-Rated Ally . | . . . . Total Orders . | . . . . Ally Attacks . | . . . . Total Damage . | . . . . Kills . | . . . . Allies Corrupted . | . . . . Allies Melted . | . . . . Intel | -11 -10 -9 -9 ------- Run | Scr Mat Mat Sto Robot Analysis Total . | . . . . Derelict Logs Recovered . | . . . . Drone Launches . | . . . . Drone Recoveries . | . . . . Exploration | -11 -10 -9 -9 ------------- Run | Scr Mat Mat Sto Turns Passed 614 | 3 275 121 215 Spaces Moved 368 | 3 163 97 105 Core . | . . . . Treads . | . . . . Legs 344 | 3 163 97 81 Wheels . | . . . . Hover . | . . . . Flight 24 | . . . 24 Fastest Speed 120 | 120 120 120 120 Average Speed 131 | 120 120 120 160 Slowest Speed 530 | 120 120 120 530 Overloaded Moves . | . . . . Propulsion Burnouts . | . . . . Robots Hopped . | . . . . Cave-ins Triggered . | . . . . Exploration Rate (%) 17 | 2 33 10 24 Regions Visited 3 Branch Regions 1 Pre-discovered Areas . | . . . . Known Exits Taken . | . . . . Unknown Exits Taken 3 | 1 1 1 . Scrap Searched . | . . . . Spaces Dug . | . . . . Terrain Destroyed 5 | . 5 . . Melee . | . . . . Projectile . | . . . . AOE 5 | . 5 . . Terrain Rammed . | . . . . Walls Destroyed . | . . . . Machines Disabled . | . . . . Actions | -11 -10 -9 -9 --------- Run | Scr Mat Mat Sto Total 436 | 2 205 102 127 Wait 1 | . . . 1 Move 365 | 2 162 96 105 Hop . | . . . . Pick Up 3 | . 3 . . Fast Attach 7 | . 3 . 4 Attach 3 | . 1 2 . Detach 3 | . 1 . 2 Swap 9 | . 6 1 2 Drop 10 | . 7 3 . Fire 34 | . 22 . 12 Melee . | . . . . Ram 1 | . . . 1 Kick . | . . . . Crush . | . . . . Escape Stasis . | . . . . Rewire . | . . . . Trap . | . . . . Miscellaneous . | . . . . Route ------- -11/Scrapyard -10/Materials -9/Materials -9/Storage History --------- Turn | Location | Event 1 | -11/Scrapyard | Discovered new exit (range 3) 4 | -11/Scrapyard | Entered Materials 144 | -10/Materials | Core integrity fell below 50% 256 | -10/Materials | Discovered new exit (range 4) 279 | -10/Materials | Entered another Materials area 279 | -9/Materials | Evolved 2 slots: Propulsion x1, Weapon x1 281 | -9/Materials | Discovered new exit (range 14) 400 | -9/Materials | Entered Storage 615 | -9/Storage | Self-destructed Last Messages --------------- 00533_ Tractor Beam melted. 00533_ R-06 Scavenger destroyed. 00536_ R-06 Scavenger collects Lgt. Ion Engine. 00540_ W-16 Scout sends out distress signal. 00543_ R-06 Scavenger collects Flight Unit. 00544_ K-01 Serf collects debris. 00546_ R-06 Scavenger collects Sml. Storage Unit. 00551_ K-01 Serf collects debris. 00557_ Acquired 14 matter. 00558_ Aluminum Leg destroyed. 00562_ U-05 Engineer lays Concrete. 00568_ Acquired Flight Unit. 00572_ C-30 ARC bursts open, deploying its payload. 00572_ G-47 Trooper unfolds itself. 00572_ G-34 Mercenary unfolds itself. 00574_ Beam Cannon destroyed. 00584_ Slammed into G-34 Mercenary. 00588_ Acquired 16 matter. 00596_ Lgt. Assault Rifle destroyed. 00613_ Cooling System destroyed. Map ----- +----------------------------------------------------+ | ?????????????????????????????????????????????????? | | ?????????????????????????????????????????????????? | | ?????????????????????????????????????????????????? | | ?????????????????????????????????????????????????? | | ?????????????????????????????????????????????????? | | ?????????????????????????????????????????????????? | | ?????????????????????????????????????????????????? | | ?????????????????????????????????????????????????? | | ?????????????????????????????????????????????????? | | ?????????????????????????????????????????????????? | | ?????????????????????????????????????????????????? | | ????????????????????? ?????????????????????????? | | ????????????????????# ?????????????????????????? | | ???????????? ?????# ?????????????????????????? | | ???????????? #????# #????????????????????????? | | ???????????? #????# +????????????????????????? | | ???????????# #????# #????????????????????????? | | ???????????# #????# #????????????????????????? | | ???????????# #????# #????????????????????????? | | ???????????# #????# #????????????????????????? | | ??########## #????# #????????????????????????? | | ??# # #????# ###########??????????????? | | ??# """ # #????# # #??????????????? | | ??# """ #^^ #????# # +??????????????? | | ??# """ #^^ #????# # #??????????????? | | ?## + #????# g@ #??????????????? | | ?#T """ # #????#g #g = +??????????????? | | ?## """ # #????# + ka #??????????????? | | ??# """ # ###### # |#??????????????? | | ??# #% % # a s u^???????????? | | ###+######## ####+############### s ??????????? | | #??# ????????????????""??????????? | | #??# ????????????????????????????? | | % #??# "???????????????????????????? | | +#########+##/###?##T#???????????????????????????? | | """"" # *% ^ #???##???????????????????????????? | | ""T"" # * #????????????????????????????????? | | # """% #????????????????????????????????? | | # """ !!!#????????????????????????????????? | | # """ !!!#????????????????????????????????? | | # ! #????????????????????????????????? | | #################????????????????????????????????? | | | | | | | | | | | | | | | | | +----------------------------------------------------+ Best States ------------- Heat Dissipation 50 Energy Generation 10 Energy Capacity 250 Matter Stores 300 Matter Capacity 300 Sight Range 16 Terrain Scan Density 10 Evasion (%) 40 Item Schematics ----------------- None Robot Schematics ------------------ None Fabricated ------------ Nothing Alien Tech Used ----------------- None Achievements -------------- None Challenges ------------ None Game ------ Seed AntigravOpticalReconstructor Manual? 0 Play Time 00:06:06 Cumulative 21.3 hours Start 2020.09.25 @ 21:18:52 End 2020.09.25 @ 21:25:54 Sessions 1 Manual Loads 0 Difficulty Rogue Special Mode None Game No. 42 Rogue 42 Adventurer 0 Explorer 0 Win Type - Total 0 Types 0/0/0/0/0/0/0/0/0 Lore% 21 Gallery% 31 Achievement% 24 Wizard Run 0 Options --------- ASCII 1 Keyboard 1 Movement Vi Keybinds 0 Fullscreen 2 Font 24/Proggy Map View 76x50 Tactical HUD 1 Map Filters SATURATION(70) Filters SATURATION(65)|SHIFT_HUE(14) Steam 1 RUN: 9c62d1aa-6bff-4867-94a6-9951dc88fcab